fUST/lending_fUST_20250921
["ID","MTS","AMOUNT","RATE_DAILY","PERIOD"]
[386645980,1758449449255,-480.0,0.0002,2]
[386645981,1758449449264,-480.0,0.0002,2]
[386645982,1758449449273,-480.0,0.0002,2]
[386645983,1758449449282,-480.0,0.0002,2]
[386645984,1758449449292,-480.0,0.0002,2]
[386645985,1758449449300,-480.0,0.0002,2]
[386645986,1758449449310,-480.0,0.0002,2]
[386645987,1758449449319,-480.0,0.0002,2]
[386645988,1758449449329,-480.0,0.0002,2]
[386645989,1758449449338,-496.49513914,0.0002,2]
[386645990,1758449449347,-480.0,0.0002,2]
[386645991,1758449449356,-492.44740963,0.0002,2]
[386645992,1758449449366,-480.0,0.0002,2]
[386645993,1758449449375,-575.11835846,0.0002,2]
[386645994,1758449449384,-480.0,0.0002,2]
[386645995,1758449449394,-480.0,0.0002,2]
[386645996,1758449449403,-486.17063493,0.0002,2]
[386645997,1758449449413,-480.0,0.0002,2]
[386645998,1758449449423,-480.0,0.0002,2]
[386645999,1758449449436,-480.0,0.0002,2]
[386646000,1758449449445,-480.0,0.0002,2]
[386646001,1758449449454,-480.0,0.0002,2]
[386646002,1758449449463,-480.0,0.0002,2]
[386646003,1758449449472,-480.0,0.0002,2]
[386646004,1758449449482,-487.23126792,0.0002,2]
[386646005,1758449449491,-480.0,0.0002,2]
[386646006,1758449449501,-480.0,0.0002,2]
[386646007,1758449449510,-480.0,0.0002,2]
[386646008,1758449449520,-480.0,0.0002,2]
[386646009,1758449449530,-480.0,0.0002,2]
[386646010,1758449449540,-480.0,0.0002,2]
[386646011,1758449449549,-480.0,0.0002,2]
[386646012,1758449449558,-480.0,0.0002,2]
[386646013,1758449449568,-542.40770434,0.0002,2]
[386646014,1758449449577,-480.0,0.0002,2]
[386646015,1758449449587,-480.0,0.0002,2]
[386646016,1758449449596,-335.58358189,0.0002,2]
[386646017,1758449449606,-480.0,0.0002,2]
[386646018,1758449449615,-480.0,0.0002,2]
[386646019,1758449449626,-480.0,0.0002,2]
[386646020,1758449449635,-480.0,0.0002,2]
[386646021,1758449449644,-480.0,0.0002,2]
[386646022,1758449449654,-480.0,0.0002,2]
[386646023,1758449449663,-366.50233707,0.0002,2]
[386646025,1758449449672,-480.0,0.0002,2]
[386646027,1758449449682,-480.0,0.0002,2]
[386646029,1758449449692,-480.0,0.0002,2]
[386646031,1758449449701,-480.0,0.0002,2]
[386646033,1758449449710,-480.0,0.0002,2]
[386646035,1758449449718,-487.9722024,0.0002,2]
[386646037,1758449449727,-480.0,0.0002,2]
[386646038,1758449449736,-480.0,0.0002,2]
[386646039,1758449449745,-480.0,0.0002,2]
[386646040,1758449449817,-480.0,0.0002,2]
[386646042,1758449449828,-480.0,0.0002,2]
[386646044,1758449449837,-480.0,0.0002,2]
[386646046,1758449449847,-480.0,0.0002,2]
[386646048,1758449449856,-480.0,0.0002,2]
[386646049,1758449449865,-485.7886967,0.0002,2]
[386646050,1758449449875,-480.0,0.0002,2]
[386646052,1758449449884,-480.0,0.0002,2]
[386646054,1758449449894,-895.0,0.0002,2]
[386646055,1758449449904,-320.51291721,0.0002,2]
[386646056,1758449449914,-480.0,0.0002,2]
[386646057,1758449449923,-480.0,0.0002,2]
[386646058,1758449449932,-492.33234517,0.0002,2]
[386646059,1758449449942,-496.58980733,0.0002,2]
[386646060,1758449449952,-553.3194877,0.0002,2]
[386646061,1758449449961,-480.0,0.0002,2]
[386646062,1758449449971,-480.0,0.0002,2]
[386646063,1758449449980,-480.0,0.0002,2]
[386646064,1758449449990,-480.0,0.0002,2]
[386646065,1758449450000,-480.0,0.0002,2]
[386646066,1758449450009,-1963.68,0.0002,2]
[386646067,1758449450018,-480.0,0.0002,2]
[386646068,1758449450028,-480.0,0.0002,2]
[386646069,1758449450037,-609.03,0.0002,2]
[386646070,1758449450047,-1884.45,0.0002,2]
[386646071,1758449450056,-480.0,0.0002,2]
[386646072,1758449450065,-468.44199641,0.0002,2]
[386646073,1758449450074,-150.0,0.0002,10]
[386646074,1758449450084,-922.44,0.0002,2]
[386646075,1758449450093,-480.0,0.0002,2]
[386646076,1758449450102,-480.0,0.0002,2]
[386646077,1758449450112,-480.0,0.0002,2]
[386646078,1758449450121,-488.17612332,0.0002,2]
[386646079,1758449450131,-163.42625366,0.0002,2]
[386646080,1758449450140,-296.45707965,0.0002,2]
[386646081,1758449450149,-492.19459068,0.0002,2]
[386646083,1758449450159,-480.0,0.0002,2]
[386646084,1758449450169,-491.3761596,0.0002,2]
[386646085,1758449450178,-268.36439723,0.0002,2]
[386646086,1758449450187,-556.54,0.0002,2]
[386646087,1758449450197,-480.0,0.0002,2]
[386646088,1758449450206,-480.0,0.0002,2]
[386646089,1758449450216,-480.0,0.0002,2]
[386646090,1758449450225,-480.0,0.0002,2]
[386646091,1758449450234,-885.02,0.0002,2]
[386646092,1758449450244,-524.98389916,0.0002,2]
[386646093,1758449450254,-937.39,0.0002,2]
[386646094,1758449450263,-480.0,0.0002,2]
[386646095,1758449450273,-912.4,0.0002,2]
[386646096,1758449450282,-1198.91,0.0002,2]
[386646097,1758449450291,-11451.54,0.0002,2]
[386646098,1758449450301,-480.0,0.0002,2]
[386646099,1758449450310,-1900.65,0.0002,2]
[386646100,1758449450327,-480.0,0.0002,2]
[386646101,1758449450340,-480.0,0.0002,2]
[386646102,1758449450350,-480.0,0.0002,2]
[386646103,1758449450360,-480.0,0.0002,2]
[386646104,1758449450370,-480.0,0.0002,2]
[386646105,1758449450380,-489.54397273,0.0002,2]
[386646106,1758449450390,-480.0,0.0002,2]
[386646107,1758449450400,-480.0,0.0002,2]
[386646108,1758449450412,-480.0,0.0002,2]
[386646109,1758449450422,-480.0,0.0002,2]
[386646110,1758449450432,-480.0,0.0002,2]
[386646111,1758449450442,-480.0,0.0002,2]
[386646112,1758449450452,-164.25044222,0.0002,2]
[386646113,1758449450461,-460.558345,0.0002,2]
[386646114,1758449450470,-704.22,0.0002,2]
[386646115,1758449450480,-480.0,0.0002,2]
[386646116,1758449450492,-480.0,0.0002,2]
[386646117,1758449450502,-480.0,0.0002,2]
[386646118,1758449450512,-480.0,0.0002,2]
[386646119,1758449450521,-480.0,0.0002,2]
[386646120,1758449450531,-480.0,0.0002,2]
[386646121,1758449450541,-480.0,0.0002,2]
[386646122,1758449450551,-480.0,0.0002,2]
[386646123,1758449450560,-480.0,0.0002,2]
[386646124,1758449450570,-480.0,0.0002,2]
[386646125,1758449450580,-480.0,0.0002,2]
[386646126,1758449450590,-480.0,0.0002,2]
[386646127,1758449450599,-480.0,0.0002,2]
[386646128,1758449450609,-480.0,0.0002,2]
[386646129,1758449450619,-480.0,0.0002,2]
[386646130,1758449450629,-480.0,0.0002,2]
[386646131,1758449450639,-480.0,0.0002,2]
[386646132,1758449450649,-885.37,0.0002,2]
[386646133,1758449450659,-480.0,0.0002,2]
[386646134,1758449450668,-480.0,0.0002,2]
[386646135,1758449450678,-480.0,0.0002,2]
[386646136,1758449450687,-2976.51,0.0002,2]
[386646137,1758449450697,-1683.02,0.0002,2]
[386646138,1758449450707,-480.0,0.0002,2]
[386646139,1758449450717,-480.0,0.0002,2]
[386646140,1758449450726,-643.42,0.0002,2]
[386646141,1758449450736,-581.85,0.0002,2]
[386646142,1758449450746,-480.0,0.0002,2]
[386646143,1758449450756,-326.6030773,0.0002,2]
[386646144,1758449450767,-721.89,0.0002,2]
[386646145,1758449450776,-480.0,0.0002,2]
[386646146,1758449450787,-4000.0,0.0002,4]
[386646147,1758449450797,-480.0,0.0002,2]
[386646148,1758449450807,-966.67,0.0002,2]
[386646149,1758449450817,-480.0,0.0002,2]
[386646150,1758449450827,-480.0,0.0002,2]
[386646151,1758449450837,-480.0,0.0002,2]
[386646152,1758449450846,-480.0,0.0002,2]
[386646153,1758449450856,-480.0,0.0002,2]
[386646154,1758449450866,-480.0,0.0002,2]
[386646155,1758449450876,-595.29,0.0002,2]
[386646156,1758449450886,-480.0,0.0002,2]
[386646157,1758449450895,-480.0,0.0002,2]
[386646158,1758449450904,-480.0,0.0002,2]
[386646159,1758449451000,-1353.47,0.0002,2]
[386646160,1758449451010,-1000.0,0.00020021,2]
[386646161,1758449451020,-1000.0,0.00020021,2]
[386646162,1758449451029,-1000.0,0.00020021,2]
[386646163,1758449451039,-308.0146575,0.00020021,2]
[386646164,1758449451048,-1000.0,0.00020021,2]
[386646165,1758449451058,-1000.0,0.00020021,2]
[386646166,1758449451067,-1000.0,0.00020021,2]
[386646167,1758449451076,-1000.0,0.00020021,2]
[386646168,1758449451086,-1000.0,0.00020021,2]
[386646169,1758449451096,-500.0,0.00020021,2]
[386646170,1758449451105,-1000.0,0.00020021,2]
[386646171,1758449451115,-1000.0,0.00020021,2]
[386646172,1758449451124,-1000.0,0.00020021,2]
[386646173,1758449451134,-179.78425889,0.00020036,2]
[386646174,1758449451144,-1500.0,0.00020268,2]
[386646175,1758449451153,-1005.24288065,0.00020268,2]
[386646176,1758449451163,-695.19,0.00020272,2]
[386646177,1758449451172,-695.19,0.00020272,2]
[386646178,1758449451181,-695.19,0.00020272,2]
[386646179,1758449451190,-695.19,0.00020272,2]
[386646180,1758449451200,-695.19279862,0.00020272,2]
[386646181,1758449451209,-480.0,0.00020273,2]
[386646182,1758449451218,-480.0,0.00020273,2]
[386646183,1758449451228,-480.0,0.00020273,2]
[386646184,1758449451237,-236.50003233,0.00020273,2]
[386646185,1758449451246,-480.0,0.00020273,2]
[386646186,1758449451255,-480.0,0.00020273,2]
[386646187,1758449451264,-480.0,0.00020273,2]
[386646188,1758449451274,-164.829468,0.00020273,2]
[386646189,1758449451283,-480.0,0.00020273,2]
[386646190,1758449451293,-480.0,0.00020273,2]
[386646191,1758449451302,-480.0,0.00020273,2]
[386646192,1758449451311,-480.0,0.00020273,2]
[386646193,1758449451320,-480.0,0.00020273,2]
[386646194,1758449451330,-480.0,0.00020273,2]
[386646195,1758449451339,-480.0,0.00020273,2]
[386646196,1758449451349,-583.25694639,0.00020273,2]
[386646197,1758449451358,-491.90398646,0.00020273,2]
[386646198,1758449451367,-480.0,0.00020273,2]
[386646199,1758449451376,-480.0,0.00020273,2]
[386646200,1758449451386,-480.0,0.00020273,2]
[386646201,1758449451395,-480.0,0.00020273,2]
[386646202,1758449451404,-480.0,0.00020273,2]
[386646203,1758449451416,-480.0,0.00020273,2]
[386646204,1758449451425,-480.0,0.00020273,2]
[386646205,1758449451435,-480.0,0.00020273,2]
[386646206,1758449451444,-486.55372528,0.00020273,2]
[386646207,1758449451453,-480.0,0.00020273,2]
[386646208,1758449451462,-480.0,0.00020273,2]
[386646209,1758449451472,-492.67807323,0.00020273,2]
[386646210,1758449451481,-480.0,0.00020273,2]
[386646211,1758449451491,-480.0,0.00020273,2]
[386646212,1758449451500,-480.0,0.00020273,2]
[386646213,1758449451509,-527.99361133,0.00020273,2]
[386646214,1758449451518,-480.0,0.00020273,2]
[386646215,1758449451528,-354.44344863,0.00020273,2]
[386646216,1758449451538,-480.0,0.00020273,2]
[386646217,1758449451547,-480.0,0.00020273,2]
[386646218,1758449451557,-480.0,0.00020273,2]
[386646219,1758449451566,-480.0,0.00020273,2]
[386646220,1758449451576,-480.0,0.00020273,2]
[386646221,1758449451585,-386.54607377,0.00020273,2]
[386646222,1758449451594,-480.0,0.00020273,2]
[386646223,1758449451604,-151.05050986,0.00020273,2]
[386646224,1758449451614,-480.0,0.00020273,2]
[386646225,1758449451622,-480.0,0.00020273,2]
[386646226,1758449451632,-502.89585119,0.00020273,2]
[386646227,1758449451641,-480.0,0.00020273,2]
[386646228,1758449451651,-530.48253614,0.00020273,2]
[386646229,1758449451661,-895.0,0.00020273,2]
[386646230,1758449451670,-566.64618465,0.00020273,2]
[386646231,1758449451680,-480.0,0.00020273,2]
[386646232,1758449451690,-480.0,0.00020273,2]
[386646233,1758449451702,-480.0,0.00020273,2]
[386646234,1758449451712,-480.0,0.00020273,2]
[386646235,1758449451723,-480.0,0.00020273,2]
[386646236,1758449451734,-480.0,0.00020273,2]
[386646237,1758449451746,-1963.68,0.00020273,2]
[386646238,1758449451755,-480.0,0.00020273,2]
[386646239,1758449451765,-480.0,0.00020273,2]
[386646240,1758449451774,-609.03,0.00020273,2]
[386646241,1758449451784,-1884.45,0.00020273,2]
[386646242,1758449451793,-480.0,0.00020273,2]
[386646243,1758449451803,-922.44,0.00020273,2]
[386646244,1758449451812,-540.24492284,0.00020273,2]
[386646245,1758449451823,-480.0,0.00020273,2]
[386646246,1758449451833,-480.0,0.00020273,2]
[386646247,1758449451842,-480.0,0.00020273,2]
[386646248,1758449451852,-556.54,0.00020273,2]
[386646249,1758449451861,-480.0,0.00020273,2]
[386646250,1758449451870,-480.0,0.00020273,2]
[386646251,1758449451880,-480.0,0.00020273,2]
[386646252,1758449451889,-885.02,0.00020273,2]
[386646253,1758449451899,-937.39,0.00020273,2]
[386646254,1758449451908,-480.0,0.00020273,2]
[386646255,1758449451918,-912.4,0.00020273,2]
[386646256,1758449451927,-1198.91,0.00020273,2]
[386646257,1758449451936,-403.90364687,0.00020273,2]
[386646258,1758449451945,-11451.54,0.00020273,2]
[386646259,1758449451955,-1900.65,0.00020273,2]
[386646260,1758449451965,-480.0,0.00020273,2]
[386646261,1758449452032,-480.0,0.00020273,2]
[386646262,1758449452042,-480.0,0.00020273,2]
[386646263,1758449452051,-480.0,0.00020273,2]
[386646264,1758449452060,-480.0,0.00020273,2]
[386646265,1758449452070,-480.0,0.00020273,2]
[386646266,1758449452080,-480.0,0.00020273,2]
[386646267,1758449452090,-480.0,0.00020273,2]
[386646268,1758449452101,-480.0,0.00020273,2]
[386646269,1758449452112,-480.0,0.00020273,2]
[386646270,1758449452122,-480.0,0.00020273,2]
[386646271,1758449452131,-704.22,0.00020273,2]
[386646272,1758449452140,-480.0,0.00020273,2]
[386646273,1758449452149,-480.0,0.00020273,2]
[386646274,1758449452159,-480.0,0.00020273,2]
[386646275,1758449452168,-480.0,0.00020273,2]
[386646276,1758449452179,-480.0,0.00020273,2]
[386646277,1758449452188,-480.0,0.00020273,2]
[386646278,1758449452198,-480.0,0.00020273,2]
[386646279,1758449452207,-480.0,0.00020273,2]
[386646280,1758449452216,-480.0,0.00020273,2]
[386646281,1758449452227,-480.0,0.00020273,2]
[386646282,1758449452237,-480.0,0.00020273,2]
[386646283,1758449452246,-480.0,0.00020273,2]
[386646284,1758449452256,-480.0,0.00020273,2]
[386646285,1758449452272,-480.0,0.00020273,2]
[386646286,1758449452281,-480.0,0.00020273,2]
[386646287,1758449452291,-885.37,0.00020273,2]
[386646288,1758449452301,-480.0,0.00020273,2]
[386646289,1758449452311,-480.0,0.00020273,2]
[386646290,1758449452321,-480.0,0.00020273,2]
[386646291,1758449452333,-2976.51,0.00020273,2]
[386646292,1758449452342,-480.0,0.00020273,2]
[386646293,1758449452352,-1683.02,0.00020273,2]
[386646294,1758449452362,-480.0,0.00020273,2]
[386646295,1758449452372,-643.42,0.00020273,2]
[386646296,1758449452382,-581.85,0.00020273,2]
[386646297,1758449452391,-721.89,0.00020273,2]
[386646298,1758449452401,-480.0,0.00020273,2]
[386646299,1758449452410,-566.79010753,0.00020273,2]
[386646300,1758449452422,-966.67,0.00020273,2]
[386646301,1758449452432,-480.0,0.00020273,2]
[386646302,1758449452442,-480.0,0.00020273,2]
[386646303,1758449452451,-480.0,0.00020273,2]
[386646304,1758449452461,-480.0,0.00020273,2]
[386646305,1758449452471,-480.0,0.00020273,2]
[386646306,1758449452480,-480.0,0.00020273,2]
[386646307,1758449452491,-595.29,0.00020273,2]
[386646308,1758449452500,-480.0,0.00020273,2]
[386646309,1758449452519,-480.0,0.00020273,2]
[386646310,1758449452537,-480.0,0.00020273,2]
[386646311,1758449452555,-1353.47,0.00020273,2]
[386646312,1758449452576,-500.0,0.00020274,2]
[386646313,1758449452595,-608.51617541,0.00020274,2]
[386646314,1758449452613,-151.0,0.00020274,2]
[386646315,1758449452631,-500.0,0.00020274,2]
[386646316,1758449452645,-151.0,0.00020274,2]
[386646317,1758449452661,-217.98651878,0.00020274,2]
[386646318,1758449452679,-262.15074362,0.00020274,2]
[386646319,1758449452698,-487.0810021,0.00020274,2]
[386646320,1758449452713,-151.0,0.00020274,2]
[386646321,1758449452730,-378.17224029,0.00020274,2]
[386646322,1758449452746,-1347.2139089,0.00020278,2]
[386646323,1758449452761,-7653.95,0.00020296,2]
[386646324,1758449452776,-151.0,0.00020296,2]
[386646325,1758449452790,-151.0,0.00020296,2]
[386646326,1758449452806,-151.0,0.00020296,2]
[386646327,1758449452822,-366.723799,0.00020296,2]
[386646328,1758449452838,-366.723799,0.00020296,2]
[386646329,1758449452853,-366.723799,0.00020296,2]
[386646330,1758449452868,-366.723799,0.00020296,2]
[386646331,1758449452883,-1000.0,0.00020321,2]
[386646332,1758449452896,-160.0,0.0002045,2]
[386646333,1758449452911,-500.0,0.00020492,2]
[386646334,1758449452926,-500.0,0.00020492,2]
[386646335,1758449452940,-165.64827802,0.00020492,2]
[386646336,1758449452954,-500.0,0.00020492,2]
[386646337,1758449452968,-1000.0,0.00020521,2]
[386646338,1758449452981,-1000.0,0.00020521,2]
[386646339,1758449452995,-1000.0,0.00020521,2]
[386646340,1758449453009,-1000.0,0.00020521,2]
[386646341,1758449453024,-1000.0,0.00020521,2]
[386646342,1758449453038,-1000.0,0.00020521,2]
[386646343,1758449453053,-1000.0,0.00020521,2]
[386646344,1758449453068,-1005.97193109,0.00020521,2]
[386646345,1758449453082,-1123.41079606,0.00020521,2]
[386646346,1758449453096,-1000.0,0.00020521,2]
[386646347,1758449453111,-158.56978987,0.00020521,2]
[386646348,1758449453125,-1000.0,0.00020521,2]
[386646349,1758449453140,-1000.0,0.00020521,2]
[386646350,1758449453155,-1001.06831998,0.00020521,2]
[386646351,1758449453169,-1001.98979774,0.00020521,2]
[386646352,1758449453183,-353.318887,0.00020521,2]
[386646353,1758449453197,-353.318887,0.00020521,2]
[386646354,1758449453207,-353.318887,0.00020521,2]
[386646355,1758449453311,-353.318887,0.00020521,2]
[386646356,1758449453330,-175.138968,0.00020521,2]
[386646357,1758449453339,-300.6040552,0.00020524,2]
[386646358,1758449453349,-4602.86,0.00020538,3]
[386646359,1758449453358,-2301.44,0.00020538,3]
[386646360,1758449453368,-1150.72,0.00020538,3]
[386646361,1758449453377,-575.36,0.00020538,3]
[386646362,1758449453386,-417.15472785,0.00020538,3]
[386646363,1758449453395,-160.0,0.00020538,3]
[386646364,1758449453404,-480.0,0.00020547,2]
[386646365,1758449453416,-539.23417234,0.00020547,2]
[386646366,1758449453425,-480.0,0.00020547,2]
[386646367,1758449453435,-487.52696194,0.00020547,2]
[386646368,1758449453444,-480.0,0.00020547,2]
[386646369,1758449453453,-480.0,0.00020547,2]
[386646370,1758449453463,-480.0,0.00020547,2]
[386646371,1758449453472,-572.58388793,0.00020547,2]
[386646372,1758449453482,-480.0,0.00020547,2]
[386646373,1758449453491,-480.0,0.00020547,2]
[386646374,1758449453501,-480.0,0.00020547,2]
[386646375,1758449453511,-480.0,0.00020547,2]
[386646376,1758449453520,-480.0,0.00020547,2]
[386646377,1758449453530,-218.86752058,0.00020547,2]
[386646378,1758449453540,-480.0,0.00020547,2]
[386646379,1758449453550,-480.0,0.00020547,2]
[386646380,1758449453560,-480.0,0.00020547,2]
[386646381,1758449453569,-480.0,0.00020547,2]
[386646382,1758449453578,-480.0,0.00020547,2]
[386646383,1758449453588,-480.0,0.00020547,2]
[386646384,1758449453597,-480.0,0.00020547,2]
[386646385,1758449453606,-480.0,0.00020547,2]
[386646386,1758449453616,-480.0,0.00020547,2]
[386646387,1758449453625,-480.0,0.00020547,2]
[386646388,1758449453635,-480.0,0.00020547,2]
[386646389,1758449453645,-480.0,0.00020547,2]
[386646390,1758449453654,-480.0,0.00020547,2]
[386646391,1758449453664,-480.0,0.00020547,2]
[386646392,1758449453675,-480.0,0.00020547,2]
[386646393,1758449453684,-480.0,0.00020547,2]
[386646394,1758449453694,-480.0,0.00020547,2]
[386646395,1758449453704,-555.81649541,0.00020547,2]
[386646396,1758449453713,-480.0,0.00020547,2]
[386646397,1758449453723,-487.75533888,0.00020547,2]
[386646398,1758449453734,-895.0,0.00020547,2]
[386646399,1758449453745,-480.0,0.00020547,2]
[386646400,1758449453754,-492.7461765,0.00020547,2]
[386646401,1758449453764,-480.0,0.00020547,2]
[386646402,1758449453774,-480.0,0.00020547,2]
[386646403,1758449453783,-480.0,0.00020547,2]
[386646404,1758449453793,-1963.68,0.00020547,2]
[386646405,1758449453802,-480.0,0.00020547,2]
[386646406,1758449453812,-480.0,0.00020547,2]
[386646407,1758449453821,-609.03,0.00020547,2]
[386646408,1758449453831,-1884.45,0.00020547,2]
[386646409,1758449453840,-480.0,0.00020547,2]
[386646410,1758449453850,-151.0,0.00020547,2]
[386646411,1758449453860,-922.44,0.00020547,2]
[386646412,1758449453870,-480.0,0.00020547,2]
[386646413,1758449453879,-528.32595358,0.00020547,2]
[386646414,1758449453889,-480.0,0.00020547,2]
[386646415,1758449453899,-556.54,0.00020547,2]
[386646416,1758449453909,-480.0,0.00020547,2]
[386646417,1758449453918,-480.0,0.00020547,2]
[386646418,1758449453928,-480.0,0.00020547,2]
[386646419,1758449453938,-885.02,0.00020547,2]
[386646420,1758449453948,-937.39,0.00020547,2]
[386646421,1758449453957,-480.0,0.00020547,2]
[386646422,1758449453967,-912.4,0.00020547,2]
[386646423,1758449453976,-1198.91,0.00020547,2]
[386646424,1758449453985,-11451.54,0.00020547,2]
[386646425,1758449453994,-1900.65,0.00020547,2]
[386646426,1758449454005,-505.46915603,0.00020547,2]
[386646427,1758449454014,-480.0,0.00020547,2]
[386646428,1758449454024,-517.89772216,0.00020547,2]
[386646429,1758449454034,-480.0,0.00020547,2]
[386646430,1758449454043,-480.0,0.00020547,2]
[386646431,1758449454053,-166.98657151,0.00020547,2]
[386646432,1758449454062,-480.0,0.00020547,2]
[386646433,1758449454072,-480.0,0.00020547,2]
[386646434,1758449454082,-480.0,0.00020547,2]
[386646435,1758449454091,-480.0,0.00020547,2]
[386646436,1758449454101,-596.43434918,0.00020547,2]
[386646437,1758449454110,-704.22,0.00020547,2]
[386646438,1758449454120,-480.0,0.00020547,2]
[386646439,1758449454130,-480.0,0.00020547,2]
[386646440,1758449454139,-233.58319196,0.00020547,2]
[386646441,1758449454150,-480.0,0.00020547,2]
[386646442,1758449454160,-480.0,0.00020547,2]
[386646443,1758449454169,-480.0,0.00020547,2]
[386646444,1758449454180,-480.0,0.00020547,2]
[386646445,1758449454190,-305.81081699,0.00020547,2]
[386646446,1758449454200,-503.92166849,0.00020547,2]
[386646447,1758449454209,-480.0,0.00020547,2]
[386646448,1758449454219,-480.0,0.00020547,2]
[386646449,1758449454228,-480.0,0.00020547,2]
[386646450,1758449454238,-480.0,0.00020547,2]
[386646451,1758449454247,-480.0,0.00020547,2]
[386646452,1758449454257,-480.0,0.00020547,2]
[386646453,1758449454266,-885.37,0.00020547,2]
[386646454,1758449454276,-480.0,0.00020547,2]
[386646455,1758449454286,-480.0,0.00020547,2]
[386646456,1758449454295,-480.0,0.00020547,2]
[386646457,1758449454305,-2976.51,0.00020547,2]
[386646458,1758449454314,-501.39005476,0.00020547,2]
[386646459,1758449454323,-1683.02,0.00020547,2]
[386646460,1758449454333,-480.0,0.00020547,2]
[386646461,1758449454343,-643.42,0.00020547,2]
[386646462,1758449454352,-581.85,0.00020547,2]
[386646463,1758449454362,-721.89,0.00020547,2]
[386646464,1758449454371,-480.0,0.00020547,2]
[386646465,1758449454380,-966.67,0.00020547,2]
[386646466,1758449454389,-480.0,0.00020547,2]
[386646467,1758449454398,-480.0,0.00020547,2]
[386646468,1758449454409,-480.0,0.00020547,2]
[386646469,1758449454421,-480.0,0.00020547,2]
[386646470,1758449454431,-480.0,0.00020547,2]
[386646471,1758449454441,-480.0,0.00020547,2]
[386646472,1758449454450,-595.29,0.00020547,2]
[386646473,1758449454462,-480.0,0.00020547,2]
[386646474,1758449454471,-480.0,0.00020547,2]
[386646475,1758449454481,-480.0,0.00020547,2]
[386646476,1758449454492,-1353.47,0.00020547,2]
[386646477,1758449454501,-153.8224536,0.00020548,2]
[386646478,1758449454510,-257.59064119,0.00020548,2]
[386646479,1758449454521,-500.0,0.00020548,2]
[386646480,1758449454530,-151.0,0.00020548,2]
[386646481,1758449454540,-151.0,0.00020548,2]
[386646482,1758449454549,-829.49260123,0.00020568,2]
[386646483,1758449454558,-1500.0,0.00020568,2]
[386646484,1758449454568,-1008.72805618,0.00020568,2]
[386646485,1758449454577,-500.0,0.00020568,2]
[386646486,1758449454586,-1500.0,0.00020568,2]
[386646487,1758449454595,-823.43081564,0.00020568,2]
[386646488,1758449454605,-1379.973145,0.00020568,2]
[386646489,1758449454616,-1500.0,0.00020568,2]
[386646490,1758449454625,-9243.05746667,0.00020617,2]
[386646491,1758449454634,-168.0,0.00020691,2]
[386646492,1758449454643,-1500.0,0.00020712,2]
[386646493,1758449454652,-420.0,0.00020792,2]